lending/lending_fUSD_20250516
["ID","MTS","AMOUNT","RATE_DAILY","PERIOD"]
[361219987,1747353643735,150.0,0.000125,5]
[361219988,1747353690714,150.0,0.00026726,120]
[361219990,1747353823953,150.0,0.00011372,7]
[361219994,1747353871023,150.0,0.00026359,120]
[361219996,1747353931825,150.0,0.00026645,120]
[361219997,1747353940142,-178.2,0.0001138,2]
[361219998,1747353940164,-250.0,0.00011395,2]
[361219999,1747353940187,-1200.0,0.00011401,2]
[361220000,1747353940209,-300.0,0.00011401,2]
[361220001,1747353940231,-300.0,0.00011401,2]
[361220002,1747353940253,-23900.0,0.00011402,2]
[361220003,1747353940276,-327.54,0.00011405,2]
[361220004,1747353940300,-1000.0,0.00011407,2]
[361220005,1747353940321,-169.14,0.00011714,2]
[361220006,1747353940342,-207.4,0.0001175,2]
[361220007,1747353940364,-1198.01,0.00011757,2]
[361220008,1747353940389,-174.74,0.00011946,2]
[361220009,1747353940411,-174.74,0.00011949,2]
[361220010,1747353940435,-174.74,0.00011952,2]
[361220011,1747353940456,-174.74,0.00011955,2]
[361220012,1747353940479,-174.74,0.00011959,2]
[361220013,1747353940500,-174.74,0.00011962,2]
[361220014,1747353940522,-174.74,0.00011965,2]
[361220015,1747353940545,-174.74,0.00011968,2]
[361220016,1747353940567,-174.74,0.00011971,2]
[361220017,1747353940588,-174.74,0.00011974,2]
[361220018,1747353940609,-174.74,0.00011977,2]
[361220019,1747353940630,-174.74,0.00011981,2]
[361220020,1747353940651,-174.74,0.00011984,2]
[361220021,1747353940672,-174.74,0.00011987,2]
[361220022,1747353940694,-174.74,0.0001199,2]
[361220023,1747353940714,-151.0,0.00011993,2]
[361220024,1747353940734,-155.0,0.00011993,2]
[361220025,1747353940755,-151.0,0.00011993,2]
[361220026,1747353940776,-719.52358209,0.00011993,2]
[361220027,1747353940801,-668.65185757,0.00011993,2]
[361220028,1747353940822,-200.0,0.00011993,2]
[361220029,1747353940843,-174.74,0.00011993,2]
[361220030,1747353940865,-174.74,0.00011996,2]
[361220031,1747353940886,-174.74,0.00011999,2]
[361220032,1747353940907,-500.0,0.00012,2]
[361220033,1747353940928,-174.74,0.00012003,2]
[361220034,1747353940949,-184.54,0.00012004,2]
[361220035,1747353940971,-174.74,0.00012006,2]
[361220036,1747353940991,-1124.29,0.00012045,2]
[361220037,1747353941014,-900.11,0.00012045,2]
[361220038,1747353941038,-200.0,0.00012089,2]
[361220039,1747353941060,-6802.0,0.00012133,2]
[361220040,1747353941082,-4023.0,0.00012133,2]
[361220041,1747353941102,-154.0,0.00012133,2]
[361220042,1747353941124,-629.0,0.00012133,2]
[361220043,1747353941145,-799.0,0.00012133,2]
[361220044,1747353941167,-85.36420833,0.00012133,2]
[361220045,1747354043099,-550.6,0.0001196,2]
[361220046,1747354043123,-207.79,0.00012017,2]
[361220047,1747354043146,-300.0,0.00012132,2]
[361220048,1747354043169,-1166.63579167,0.00012133,2]
[361220049,1747354043191,-1457.0,0.00012133,2]
[361220050,1747354043213,-919.0,0.00012133,2]
[361220051,1747354043235,-584.0,0.00012133,2]
[361220052,1747354043256,-553.0,0.00012133,2]
[361220053,1747354043278,-838.0,0.00012133,2]
[361220054,1747354043299,-880.0,0.00012133,2]
[361220055,1747354043321,-1147.0,0.00012133,2]
[361220056,1747354043341,-5941.0,0.00012133,2]
[361220057,1747354043362,-500.0,0.00012137,2]
[361220058,1747354043386,-2675.41089,0.000125,5]
[361220059,1747354043406,-2675.41089,0.000125,5]
[361220060,1747354043429,-2675.4109,0.000125,5]
[361220061,1747354043449,-250.0,0.00012515,2]
[361220062,1747354043471,-200.0,0.00012515,2]
[361220063,1747354043493,-2441.45,0.00012522,2]
[361220064,1747354043514,-155.544,0.00012522,2]
[361220065,1747354043534,-207.4,0.00012541,2]
[361220066,1747354043554,-1680.0,0.00012541,2]
[361220067,1747354043575,-150.0,0.00012607,2]
[361220068,1747354043596,-150.0,0.00012607,2]
[361220069,1747354043620,-804.54436954,0.00012619,2]
[361220070,1747354043643,-200.0,0.00012772,2]
[361220071,1747354043663,-597.7043,0.000128,2]
[361220072,1747354043686,-150.0,0.000128,2]
[361220073,1747354043709,-327.54,0.00012831,2]
[361220074,1747354043730,-1000.0,0.00012833,2]
[361220075,1747354043751,-500.0,0.00012896,2]
[361220076,1747354043772,-1249.255,0.00012896,2]
[361220077,1747354043794,-4587.1324,0.00012896,2]
[361220078,1747354043816,-3839.1775,0.000129,2]
[361220079,1747354043839,-642.65944201,0.000129,2]
[361220080,1747354049085,-800.0,0.000122,4]
[361220081,1747354049107,-357.34055799,0.000129,2]
[361220082,1747354049130,-164.60625558,0.000129,2]
[361220083,1747354049152,-473.11030711,0.000129,2]
[361220084,1747354049173,-1157.0355002,0.000129,2]
[361220085,1747354049194,-161.56703082,0.000129,2]
[361220086,1747354049218,-3640.72285663,0.000129,2]
[361220087,1747354049238,-190.78567091,0.000129,2]
[361220088,1747354049260,-184.54,0.00012904,2]
[361220089,1747354049281,-180.46635268,0.00012933,2]
[361220090,1747354049302,-179.13612983,0.00012933,2]
[361220091,1747354049329,-500.0,0.00012933,2]
[361220092,1747354049355,-500.0,0.00012933,2]
[361220093,1747354049381,-500.0,0.00012933,2]
[361220094,1747354049407,-500.0,0.00012933,2]
[361220095,1747354049437,-500.0,0.00012933,2]
[361220096,1747354049465,-500.0,0.00012933,2]
[361220097,1747354049491,-500.0,0.00012933,2]
[361220098,1747354049525,-500.0,0.00012933,2]
[361220099,1747354049550,-500.0,0.00012933,2]
[361220100,1747354049575,-500.0,0.00012933,2]
[361220101,1747354049601,-126.14725359,0.00012933,2]
[361220108,1747354170750,150.0,0.00024783,120]
[361220121,1747354231737,-154.0,0.00011783,2]
[361220123,1747354231747,-146.0,0.000123,4]
[361220125,1747354231759,-809.15148806,0.000123,4]
[361220131,1747354231823,-644.84851194,0.000123,4]
[361220132,1747354231834,-2400.0,0.000124,4]
[361220133,1747354231843,-3200.0,0.000125,4]
[361220134,1747354231853,-1200.0,0.00012599,2]
[361220135,1747354231863,-4000.0,0.000126,4]
[361220136,1747354231872,-800.0,0.000127,4]
[361220137,1747354231881,-800.0,0.000128,4]
[361220138,1747354231891,-800.0,0.000129,4]
[361220139,1747354231900,-3519.36542824,0.000129,2]
[361220140,1747354231909,-3693.8901277,0.00012934,2]
[361220141,1747354231918,-151.0,0.00012988,2]
[361220142,1747354231927,-719.52358209,0.00012988,2]
[361220143,1747354231937,-668.65185757,0.00012988,2]
[361220144,1747354231947,-155.0,0.00012988,2]
[361220145,1747354231956,-200.0,0.00012988,2]
[361220146,1747354231966,-589.73750716,0.00012995,2]
[361220147,1747354231975,-589.73750716,0.00012995,2]
[361220148,1747354231984,-589.73750716,0.00012995,2]
[361220149,1747354231994,-589.73750716,0.00012995,2]
[361220150,1747354232004,-589.73750716,0.00012995,2]
[361220151,1747354232013,-589.73750716,0.00012995,2]
[361220152,1747354232022,-589.73750716,0.00012995,2]
[361220153,1747354232032,-589.73750716,0.00012995,2]
[361220154,1747354232044,-589.73750716,0.00012995,2]
[361220155,1747354232056,-589.73750716,0.00012995,2]
[361220156,1747354232065,-589.73750716,0.00012995,2]
[361220157,1747354232074,-589.73750716,0.00012995,2]
[361220158,1747354232083,-589.73750716,0.00012995,2]
[361220159,1747354232092,-589.73750716,0.00012995,2]
[361220160,1747354232101,-589.73750716,0.00012995,2]
[361220161,1747354232111,-589.73750716,0.00012995,2]
[361220162,1747354232120,-589.73750716,0.00012995,2]
[361220163,1747354232129,-589.73750716,0.00012995,2]
[361220164,1747354232139,-589.73750716,0.00012995,2]
[361220165,1747354232148,-589.73750716,0.00012995,2]
[361220166,1747354232157,-589.73750716,0.00012995,2]
[361220167,1747354232167,-589.73750716,0.00012995,2]
[361220168,1747354232177,-589.73750716,0.00012995,2]
[361220169,1747354232187,-589.73750716,0.00012995,2]
[361220170,1747354232196,-589.73750716,0.00012995,2]
[361220171,1747354232205,-589.73750716,0.00012995,2]
[361220172,1747354232215,-589.73750716,0.00012995,2]
[361220173,1747354232224,-589.73750716,0.00012995,2]
[361220174,1747354232234,-589.73750716,0.00012995,2]
[361220175,1747354232243,-589.73750716,0.00012995,2]
[361220176,1747354232253,-589.73750716,0.00012995,2]
[361220178,1747354232263,-589.73750716,0.00012995,2]
[361220179,1747354232272,-589.73750716,0.00012995,2]
[361220181,1747354232281,-589.73750716,0.00012995,2]
[361220183,1747354232294,-501.76153107,0.00012995,2]
[361220186,1747354232308,-87.97597609,0.00012995,2]
[361220188,1747354232317,-589.73750716,0.00012995,2]
[361220190,1747354232326,-589.73750716,0.00012995,2]
[361220192,1747354232336,-589.73750716,0.00012995,2]
[361220195,1747354232346,-589.73750716,0.00012995,2]
[361220197,1747354232356,-589.73750716,0.00012995,2]
[361220200,1747354232365,-589.73750716,0.00012995,2]
[361220202,1747354232374,-589.73750716,0.00012995,2]
[361220205,1747354232383,-589.73750716,0.00012995,2]
[361220208,1747354232392,-589.73750716,0.00012995,2]
[361220211,1747354232402,-580.13712914,0.00012995,2]
[361220214,1747354232411,-580.13712914,0.00012995,2]
[361220217,1747354232421,-580.13712914,0.00012995,2]
[361220219,1747354232430,-580.13712914,0.00012995,2]
[361220221,1747354232439,-580.13712914,0.00012995,2]
[361220223,1747354232449,-580.13712914,0.00012995,2]
[361220225,1747354232459,-580.13712914,0.00012995,2]
[361220227,1747354232468,-580.13712914,0.00012995,2]
[361220229,1747354232478,-580.13712914,0.00012995,2]
[361220231,1747354232490,-580.13712914,0.00012995,2]
[361220233,1747354232499,-580.13712914,0.00012995,2]
[361220235,1747354232508,-580.13712914,0.00012995,2]
[361220237,1747354232518,-580.13712914,0.00012995,2]
[361220239,1747354232527,-580.13712914,0.00012995,2]
[361220241,1747354232539,-580.13712914,0.00012995,2]
[361220243,1747354232549,-580.13712914,0.00012995,2]
[361220245,1747354232559,-580.13712914,0.00012995,2]
[361220247,1747354232568,-580.13712914,0.00012995,2]
[361220249,1747354232577,-580.13712914,0.00012995,2]
[361220251,1747354232587,-580.13712914,0.00012995,2]
[361220253,1747354232596,-580.13712914,0.00012995,2]
[361220255,1747354232605,-580.13712914,0.00012995,2]
[361220257,1747354232615,-580.13712914,0.00012995,2]
[361220259,1747354232624,-580.13712914,0.00012995,2]
[361220261,1747354232633,-580.13712914,0.00012995,2]
[361220263,1747354232643,-580.13712914,0.00012995,2]
[361220265,1747354232652,-580.13712914,0.00012995,2]
[361220267,1747354232662,-580.13712914,0.00012995,2]
[361220269,1747354232672,-580.13712914,0.00012995,2]
[361220271,1747354232682,-580.13712914,0.00012995,2]
[361220273,1747354232691,-580.13712914,0.00012995,2]
[361220275,1747354232701,-580.13712914,0.00012995,2]
[361220277,1747354232710,-582.55436719,0.00012995,2]
[361220279,1747354232721,-582.55436719,0.00012995,2]
[361220281,1747354232730,-582.55436719,0.00012995,2]
[361220283,1747354232739,-582.55436719,0.00012995,2]
[361220285,1747354232748,-582.55436719,0.00012995,2]
[361220287,1747354232757,-582.55436719,0.00012995,2]
[361220289,1747354232767,-183.8899294,0.00012995,2]
[361220296,1747354232823,-398.66443779,0.00012995,2]
[361220298,1747354232832,-582.55436719,0.00012995,2]
[361220300,1747354232842,-582.55436719,0.00012995,2]
[361220302,1747354232851,-582.55436719,0.00012995,2]
[361220304,1747354232860,-582.55436719,0.00012995,2]
[361220306,1747354232869,-582.55436719,0.00012995,2]
[361220308,1747354232878,-933.67910546,0.00012996,2]
[361220311,1747354232903,-44227.80838085,0.00012996,2]
[361220446,1747354237754,-838.0,0.00011783,2]
[361220447,1747354237764,-138.46319138,0.000129,2]
[361220461,1747354238238,-632.89380876,0.000129,2]
[361220463,1747354238249,-4919.50244976,0.00012996,2]
[361220465,1747354238260,-1241.83745801,0.00012996,2]
[361220469,1747354238288,-282.55999991,0.00012996,2]
[361220472,1747354238315,-650.7906271,0.00012996,2]
[361220525,1747354240071,-880.0,0.00011783,2]
[361220526,1747354240082,-10872.14381761,0.00012996,2]
[361220527,1747354240092,-235.38910437,0.00012999,2]
[361220528,1747354240101,-194.95906157,0.00012999,2]
[361220529,1747354240111,-284.07953898,0.00012999,2]
[361220530,1747354240121,-12943.96962419,0.00013,2]
[361220531,1747354240418,-83584.28837038,0.00013,2]
[361220532,1747354240430,-9025.32125001,0.00013,2]
[361220533,1747354240441,-13792.92332109,0.00013,2]
[361220534,1747354240453,-3071.32839809,0.00013,2]
[361220535,1747354240543,-629.99192494,0.00013,2]
[361220536,1747354240555,-1156.2,0.00013,2]
[361220537,1747354240566,-3682.8819354,0.00013,2]
[361220538,1747354240577,-20376.5625003,0.00013,2]
[361220541,1747354243631,-2549.39537315,0.00013,2]
[361220544,1747354243642,-205684.90130916,0.00013,2]
[361220546,1747354243651,-969313.5630725,0.00013,2]
[361220549,1747354243663,-540.07934891,0.00013,2]
[361220569,1747354243804,-1743.94467607,0.00013,2]
[361220663,1747354244706,-83883.82135915,0.00013,2]
[361220666,1747354244717,-475.47215707,0.00013,2]
[361220668,1747354244728,-873.04153788,0.00013,2]
[361220742,1747354246229,-954.07311276,0.00013,2]
[361220743,1747354246256,-1019.30002109,0.00013,2]
[361220744,1747354246267,-1273.0,0.00013,2]
[361220745,1747354246282,-1890.1,0.00013,2]
[361220746,1747354246294,-8249.9,0.00013,2]
[361220747,1747354246306,-657.27927126,0.00013,2]
[361220748,1747354246318,-664.6320972,0.00013,2]
[361220768,1747354246533,-1401.71754665,0.00013,2]
[361220769,1747354246556,-588.748,0.00013,2]
[361220770,1747354246567,-4483.602,0.00013,2]
[361220771,1747354246578,-29668.08283417,0.00013,2]
[361220785,1747354410748,150.0,0.00024808,120]
[361220793,1747354604895,-217.60408785,0.00010194,2]
[361220794,1747354606949,-155.86,0.00010194,2]
[361220795,1747354609147,-265.15046763,0.00010194,2]
[361220796,1747354613517,-322.47637996,0.00010194,2]
[361220797,1747354615616,-185.63906456,0.00010194,2]
[361220800,1747354817319,1511.82324744,0.00027397,120]
[361220805,1747355063532,-192.2924088,0.00011789,2]
[361220806,1747355065121,-344.84612336,0.00011789,2]
[361220807,1747355066588,-198.93256034,0.00011789,2]
[361220808,1747355069769,150.0,0.00011783,7]
[361220809,1747355069807,-224.9289075,0.00011789,2]
[361220810,1747355069829,-76.13853216,0.00011789,2]
[361220812,1747355092483,-198.93256034,0.00011789,2]
[361220814,1747355246246,-280.87178791,0.0001,2]
[361220816,1747355249268,-169.12821209,0.0001,2]
[361220819,1747355320193,-333.74349434,0.00010136,2]
[361220820,1747355321040,2000.85728694,0.00012,5]
[361220821,1747355321700,-10.93204639,0.00010136,2]
[361220837,1747355432173,-1923.43,0.00011738,2]
[361220839,1747355432183,-300.0,0.00011789,2]
[361220841,1747355432193,-200.0,0.00011789,2]
[361220843,1747355432202,-799.0,0.0001179,2]
[361220844,1747355432212,-629.0,0.0001179,2]
[361220845,1747355432221,-571.593,0.0001179,2]
[361220846,1747355432231,-919.0,0.0001179,2]
[361220847,1747355432241,-1457.0,0.0001179,2]
[361220848,1747355432250,-553.0,0.0001179,2]
[361220849,1747355432260,-5941.0,0.0001179,2]
[361220850,1747355432269,-1147.0,0.0001179,2]
[361220851,1747355432280,-936.32,0.00011837,2]
[361220852,1747355432289,-200.0,0.00011852,2]
[361220853,1747355432299,-1000.0,0.00011879,2]
[361220854,1747355432308,-184.54,0.00011968,2]
[361220855,1747355432318,-500.0,0.00012,2]
[361220856,1747355432327,-207.4,0.00012026,2]
[361220857,1747355432337,-23900.0,0.00012034,2]
[361220858,1747355432347,-181.97,0.00012047,2]
[361220859,1747355432357,-158.11,0.00012249,2]
[361220860,1747355432366,-250.0,0.00012249,2]
[361220861,1747355432376,-166.39,0.00012281,2]
[361220862,1747355432386,-164.5,0.00012282,2]
[361220863,1747355432395,-158.11,0.0001231,2]
[361220864,1747355432405,-1201.23,0.0001239,2]
[361220865,1747355432415,-1146.73,0.00012458,2]
[361220866,1747355432424,-1953.16,0.00012607,2]
[361220867,1747355432433,-155.544,0.00012607,2]
[361220868,1747355432443,-705.74,0.00012687,2]
[361220869,1747355432452,-200.0,0.00012862,2]
[361220870,1747355432461,-151.0,0.00012862,2]
[361220871,1747355432471,-155.0,0.00012862,2]
[361220872,1747355432480,-719.52358209,0.00012862,2]
[361220873,1747355432490,-668.65185757,0.00012862,2]
[361220874,1747355432755,-864.16826048,0.00012864,2]
[361220875,1747355432766,-500.0,0.00012869,2]
[361220876,1747355432776,-500.0,0.00012869,2]
[361220877,1747355432786,-500.0,0.00012869,2]
[361220878,1747355432795,-99.74348861,0.00012869,2]
[361220879,1747355432807,-400.25651139,0.00012869,2]
[361220880,1747355432816,-500.0,0.00012869,2]
[361220881,1747355432826,-500.0,0.00012869,2]
[361220882,1747355432835,-500.0,0.00012869,2]
[361220883,1747355432844,-400.0,0.00012869,2]
[361220884,1747355432853,-500.0,0.00012869,2]
[361220885,1747355432862,-500.0,0.00012869,2]
[361220886,1747355432871,-500.0,0.00012869,2]
[361220887,1747355432880,-181.97295532,0.00012869,2]
[361220888,1747355432890,-500.0,0.00012869,2]
[361220889,1747355432900,-500.0,0.00012869,2]
[361220890,1747355432910,-500.0,0.00012869,2]
[361220891,1747355432919,-500.0,0.00012869,2]
[361220892,1747355432929,-500.0,0.00012869,2]
[361220893,1747355432939,-327.37053322,0.00012869,2]
[361220894,1747355432951,-172.62946678,0.00012869,2]
[361220895,1747355432960,-500.0,0.00012869,2]
[361220896,1747355432970,-500.0,0.00012869,2]
[361220897,1747355432980,-104.12053322,0.00012869,2]
[361220898,1747355432993,-395.87946678,0.00012869,2]
[361220899,1747355433003,-500.0,0.00012869,2]
[361220900,1747355433013,-500.0,0.00012869,2]
[361220901,1747355433023,-386.38985222,0.00012869,2]
[361220902,1747355433127,-113.61014778,0.00012869,2]
[361220903,1747355433137,-500.0,0.00012869,2]
[361220904,1747355433147,-500.0,0.00012869,2]
[361220905,1747355433156,-500.0,0.00012869,2]
[361220906,1747355433166,-500.0,0.00012869,2]
[361220907,1747355433175,-500.0,0.00012869,2]
[361220908,1747355433184,-500.0,0.00012869,2]
[361220909,1747355433193,-343.30435461,0.00012869,2]
[361220912,1747355437844,-156.69564539,0.00012869,2]
[361220913,1747355437853,-500.0,0.00012869,2]
[361220914,1747355437862,-500.0,0.00012869,2]
[361220915,1747355437872,-500.0,0.00012869,2]
[361220916,1747355437881,-500.0,0.00012869,2]
[361220917,1747355437890,-72.97035461,0.00012869,2]
[361220918,1747355438006,-427.02964539,0.00012869,2]
[361220919,1747355438016,-500.0,0.00012869,2]
[361220920,1747355438027,-500.0,0.00012869,2]
[361220921,1747355438038,-500.0,0.00012869,2]
[361220922,1747355438047,-500.0,0.00012869,2]
[361220923,1747355438056,-500.0,0.00012869,2]
[361220924,1747355438068,-500.0,0.00012869,2]
[361220925,1747355438078,-500.0,0.00012869,2]
[361220926,1747355438087,-500.0,0.00012869,2]
[361220927,1747355438097,-500.0,0.00012869,2]
[361220928,1747355438106,-500.0,0.00012869,2]
[361220929,1747355438115,-500.0,0.00012869,2]
[361220930,1747355438125,-500.0,0.00012869,2]
[361220931,1747355438134,-500.0,0.00012869,2]
[361220932,1747355438144,-500.0,0.00012869,2]
[361220933,1747355438154,-500.0,0.00012869,2]
[361220934,1747355438163,-500.0,0.00012869,2]
[361220935,1747355438173,-408.46927002,0.00012869,2]
[361220936,1747355438182,-500.0,0.00012869,2]
[361220937,1747355438191,-500.0,0.00012869,2]
[361220938,1747355438201,-500.0,0.00012869,2]
[361220939,1747355438210,-500.0,0.00012869,2]
[361220940,1747355438219,-425.18578452,0.00012869,2]
[361220941,1747355438242,-74.81421548,0.00012869,2]
[361220942,1747355438251,-500.0,0.00012869,2]
[361220943,1747355438260,-500.0,0.00012869,2]
[361220944,1747355438269,-550.0,0.00012869,2]
[361220945,1747355438278,-500.0,0.00012869,2]
[361220947,1747355438291,-500.0,0.00012869,2]
[361220949,1747355438301,-500.0,0.00012869,2]
[361220951,1747355438310,-55006.77182476,0.0001287,2]
[361220953,1747355438321,-1498.92865262,0.0001287,2]
[361220993,1747355439888,-9520.0,0.0001287,2]
[361221001,1747355440407,-5930.31268022,0.0001287,2]
[361221002,1747355440424,-807.38737495,0.0001287,2]
[361221003,1747355440435,-548.93781045,0.0001287,2]
[361221006,1747355440486,-468.5686367,0.0001287,2]
[361221041,1747355441703,-193.19966075,0.0001179,2]
[361221044,1747355443043,-453.0,0.0001179,2]
[361221047,1747355443793,-233.80033925,0.0001179,2]
[361221048,1747355443815,-125.36756576,0.0001287,2]
[361221053,1747355446020,-161.7,0.0001179,2]
[361221054,1747355446047,-780.252,0.0001179,2]
[361221055,1747355446057,-22451.78800002,0.0001287,2]
[361221056,1747355446073,-604.0,0.0001287,2]
[361221065,1747355447447,-252.86038133,0.00012376,2]
[361221066,1747355450477,-192.73622149,0.00012376,2]
[361221067,1747355452443,-170.55339718,0.00012376,2]
[361221068,1747355455089,-151.53640827,0.00012376,2]
[361221069,1747355458038,-182.24007805,0.00011977,2]
[361221070,1747355461081,-285.50247882,0.00011977,2]
[361221071,1747355463844,-230.41762075,0.00011977,2]
[361221072,1747355465135,-99.83982238,0.00011977,2]
[361221073,1747355465157,-78.66255687,0.00012376,2]
[361221074,1747355468243,-33.60103486,0.00012376,2]
[361221075,1747355468264,-128.09896514,0.0001275,2]
[361221076,1747355470333,-152.74,0.0001275,2]
[361221077,1747355472644,-169.41137241,0.0001275,2]
[361221078,1747355474551,-330.58862759,0.0001275,2]
[361221079,1747355477148,-277.00028035,0.0001275,2]
[361221080,1747355478687,-261.44487165,0.0001275,2]
[361221081,1747355482536,-177.10134542,0.00011977,2]
[361221082,1747355485382,-179.04751958,0.00011977,2]
[361221084,1747355487443,-266.421135,0.00011977,2]
[361221085,1747355489489,-295.20140833,0.00011977,2]
[361221088,1747355491790,-231.55859167,0.00011977,2]
[361221090,1747355494350,-200.67,0.00011977,2]
[361221092,1747355573053,-214.13273447,0.00011977,2]
[361221093,1747355575097,-247.46751243,0.00011977,2]
[361221096,1747355611874,17828.10310098,0.00015,10]
[361221097,1747355611895,69891.74877551,0.00015,10]
[361221099,1747355686381,-225.04027578,0.00010406,2]
[361221100,1747355689731,-154.27,0.00010406,2]
[361221101,1747355692426,-157.1270909,0.00010406,2]
[361221102,1747355696824,-232.73427422,0.00010406,2]
[361221103,1747355698604,-244.2573788,0.00010406,2]
[361221104,1747355700103,-18.6209803,0.00010406,2]
[361221105,1747355887646,-208.69208327,0.00011876,2]
[361221115,1747356084066,203.538,0.00010082,2]
[361221116,1747356158716,600.0,0.0001003,2]
[361221117,1747356209544,900.0,0.0001,2]
[361221118,1747356244260,150.0,0.0001177,7]
[361221119,1747356295054,2700.0,0.00027,120]
[361221120,1747356391359,3600.0,0.00025,30]
[361221121,1747356412490,-171.67624742,0.000105,3]
[361221122,1747356444779,-195.8507542,0.000105,3]
[361221123,1747356446961,-197.42487187,0.000105,3]
[361221124,1747356450472,-163.81548596,0.000105,3]
[361221125,1747356452835,-71.23264055,0.000105,3]
[361221126,1747356452858,-118.23329037,0.0001065,2]
[361221127,1747356456037,-81.76670963,0.0001065,2]
[361221128,1747356456057,-224.96708499,0.000108,2]
[361221135,1747356615862,152.51,0.000249,31]
[361221136,1747356615924,152.51,0.000249,31]
[361221137,1747356615979,152.51,0.000249,31]
[361221138,1747356616046,152.51,0.000249,31]
[361221139,1747356616105,152.51,0.000249,31]
[361221140,1747356616166,152.51,0.000249,31]
[361221141,1747356622432,-200.0,0.000108,2]
[361221150,1747356632088,-75.03291501,0.000108,2]
[361221151,1747356632097,-200.0,0.0001094,2]
[361221152,1747356632107,-200.0,0.0001108,2]
[361221153,1747356632116,-208.692083,0.00011492,2]
[361221154,1747356632126,-200.0,0.0001155,2]
[361221155,1747356632135,-1000.0,0.00011675,2]
[361221156,1747356632144,-250.0,0.0001177,2]
[361221157,1747356632153,-1547.48750998,0.000118,2]
[361221158,1747356632192,-577.04834208,0.000118,2]
[361221159,1747356632298,-180.02414794,0.000118,2]
[361221160,1747356632307,-198.0,0.000118,2]
[361221161,1747356632317,-74.92596238,0.00011879,2]
[361221162,1747356632328,-627.09548246,0.00011879,2]
[361221204,1747356638086,-497.97855516,0.00011879,2]
[361221205,1747356638096,-200.0,0.0001188,2]
[361221206,1747356638105,-81.78888186,0.0001188,2]
[361221207,1747356638116,-118.21111814,0.0001188,2]
[361221208,1747356638125,-300.0,0.00011976,2]
[361221209,1747356638134,-163.56239079,0.00011977,2]
[361221210,1747356638245,-150.68460921,0.00011977,2]
[361221211,1747356638255,-203.10177877,0.00011977,2]
[361221212,1747356638267,-1253.89822123,0.00011977,2]
[361221213,1747356638276,-838.0,0.00011977,2]
[361221214,1747356638286,-880.0,0.00011977,2]
[361221215,1747356638295,-4123.4,0.00011977,2]
[361221216,1747356638307,-150.0,0.00011977,2]
[361221217,1747356638317,-1293.0,0.00011982,2]
[361221218,1747356638327,-198.72,0.00012,2]
[361221219,1747356638336,-151.0,0.00012181,2]
[361221220,1747356638345,-151.0,0.00012181,2]
[361221221,1747356638354,-200.0,0.00012181,2]
[361221222,1747356638363,-314.696438,0.00012181,2]
[361221223,1747356638375,-155.0,0.00012181,2]
[361221224,1747356638384,-151.0,0.00012181,2]
[361221225,1747356638393,-719.52358209,0.00012181,2]
[361221226,1747356638403,-207.4,0.00012181,2]
[361221228,1747356638412,-668.65185757,0.00012181,2]
[361221230,1747356638421,-151.0,0.00012181,2]
[361221232,1747356638430,-19938.73435363,0.00012189,2]
[361221238,1747356638478,-374.87734997,0.00012189,2]
[361221240,1747356638489,-1859.37232315,0.00012189,2]
[361221416,1747356640754,-1727.01597325,0.00012189,2]
[361221418,1747356640764,-164.5,0.00012257,2]
[361221420,1747356640773,-774.73242408,0.0001236,2]
[361221422,1747356640782,-196.52,0.00012361,2]